bitfinex/quotes_ETHUSD_20240729
["timestamp","ask_amount","ask_price","bid_price","bid_amount"]
[1722293212401,0.598896,3339.3,3338.7,2.99515]
[1722293213521,0.598896,3339.3,3339.0,2.99489]
[1722293213725,2.99438,3339.6,3339.0,2.99489]
[1722293213889,4.02355372,3339.7,3339.0,2.99489]
[1722293214084,4.02355372,3339.7,3338.9,2.3016]
[1722293214287,4.02355372,3339.7,3339.1,2.99481]
[1722293214524,0.75537637,3339.6,3339.1,2.99481]
[1722293215110,7.37,3340.0,3339.3,2.99462]
[1722293215417,2.4474,3340.3,3339.3,2.99462]
[1722293215617,2.4474,3340.3,3339.6,2.99436]
[1722293215618,0.55,3340.2,3339.6,2.99436]
[1722293215828,3.54384,3340.2,3339.5,2.99438]
[1722293216015,3.54384,3340.2,3339.3,2.99461]
[1722293216016,2.99357,3340.5,3339.8,2.99418]
[1722293216188,9.86950997,3340.6,3339.6,5.321]
[1722293216189,4.279958,3340.4,3339.6,5.321]
[1722293216820,4.279958,3340.4,3339.7,2.9942]
[1722293217120,1.286308,3340.4,3339.8,2.99416]
[1722293217320,1.286308,3340.4,3339.6,2.3267]
[1722293217321,1.286308,3340.4,3339.6,5.32104]
[1722293217490,1.286308,3340.4,3339.8,2.99412]
[1722293217697,1.4649878,3340.3,3340.0,2.99396]
[1722293218008,1.4649878,3340.3,3339.6,2.3267]
[1722293218009,1.64020554,3340.3,3340.1,2.99391]
[1722293218215,0.17521774,3340.3,3340.1,2.99391]
[1722293218411,0.17521774,3340.3,3340.2,2.99383]
[1722293218618,0.17521774,3340.3,3340.2,5.98766]
[1722293218789,7.37,3340.9,3339.9,2.99409]
[1722293218991,2.99287,3341.3,3339.9,2.99409]
[1722293218992,0.17552416,3340.8,3340.6,2.99346]
[1722293219190,2.99284,3341.3,3340.4,2.99365]
[1722293219421,2.9932,3340.9,3340.3,2.3133]
[1722293219629,1.45513606,3341.2,3340.3,5.30702]
[1722293219630,2.99312,3341.0,3340.3,5.30702]
[1722293219929,0.17565918,3340.8,3340.3,5.30702]
[1722293220156,2.99312,3341.0,3340.3,5.30702]
[1722293220300,0.17565918,3340.9,3340.4,2.99364]
[1722293220653,2.9929,3341.3,3340.6,2.99346]
[1722293220853,0.17565918,3340.8,3340.6,2.99346]
[1722293220995,0.841818,3341.2,3340.6,2.99346]
[1722293221198,0.17574221,3341.1,3340.6,2.99346]
[1722293221395,0.17574221,3341.1,3340.4,2.99363]
[1722293221624,0.17574221,3341.1,3340.5,2.99355]
[1722293221829,0.45605002,3341.0,3340.5,2.99355]
[1722293222406,0.17574221,3340.9,3340.5,2.99355]
[1722293222610,0.17574221,3340.9,3340.6,2.99346]
[1722293223625,0.17574221,3340.9,3340.8,5.98658]
[1722293223904,0.17574221,3340.9,3340.8,8.48458]
[1722293224135,2.3702,3342.0,3341.4,2.99273]
[1722293224309,1.36642278,3341.9,3341.4,2.99273]
[1722293224522,0.17586161,3341.9,3341.4,2.99273]
[1722293224926,2.99214,3342.1,3341.4,2.99273]
[1722293224927,0.17586161,3341.8,3341.4,2.99273]
[1722293225130,2.99214,3342.1,3341.4,2.99273]
[1722293225303,0.17586161,3342.0,3341.4,2.99273]
[1722293225716,0.17586161,3342.0,3341.5,2.99263]
[1722293225916,0.31679016,3342.0,3341.5,2.99263]
[1722293226113,0.17586161,3341.9,3341.3,5.9856]
[1722293226343,0.17586161,3341.9,3341.4,2.99269]
[1722293226938,0.17586161,3341.9,3341.6,2.99251]
[1722293228235,0.17586161,3341.9,3341.7,2.99247]
[1722293228445,0.17586161,3341.9,3341.1,2.636]
[1722293228446,0.17586161,3341.9,3341.5,5.4675]
[1722293228744,5.99195,3342.3,3341.5,5.4675]
[1722293228915,0.77505661,3342.2,3341.5,5.4675]
[1722293229357,0.77505661,3342.2,3341.6,2.99255]
[1722293229716,0.77505661,3342.2,3341.7,2.99248]
[1722293229923,0.17586161,3342.2,3341.7,2.99248]
[1722293230149,10.36168,3342.6,3341.9,2.99224]
[1722293230318,7.37,3342.6,3342.0,2.9922]
[1722293230518,0.17614181,3342.5,3342.0,2.99213]
[1722293231026,0.17614181,3342.5,3342.1,2.99207]
[1722293231343,0.75461418,3342.4,3342.1,2.99207]
[1722293231512,0.17650502,3342.3,3342.1,2.99207]
[1722293231719,2.9915,3342.8,3342.1,2.99207]
[1722293231929,0.17650502,3342.7,3342.1,2.99207]
[1722293232125,0.3168005,3342.6,3342.1,2.99207]
[1722293232557,0.17650502,3342.5,3342.1,2.99207]
[1722293232962,0.17650502,3342.5,3342.2,2.99195]
[1722293233144,0.17650502,3342.5,3342.4,2.99186]
[1722293233319,3.0,3343.0,3342.4,2.99186]
[1722293233523,13.36125,3343.1,3342.6,2.99167]
[1722293233524,2.04108932,3342.9,3342.6,2.99167]
[1722293234227,2.04108932,3342.9,3342.4,2.99179]
[1722293234422,2.04108932,3342.9,3342.5,2.99175]
[1722293234961,0.17669432,3342.9,3342.5,2.99175]
[1722293235126,5.99124,3343.1,3342.5,2.99175]
[1722293235655,0.17676948,3343.0,3342.1,5.4784]
[1722293235856,2.99144,3342.9,3342.2,2.99204]
[1722293236026,2.99151,3342.8,3342.2,2.99204]
[1722293236225,2.99151,3342.8,3342.1,2.4863]
[1722293236226,0.31682795,3342.7,3342.1,5.47841]
[1722293236426,0.31682795,3342.7,3342.2,2.99197]
[1722293236828,0.17678504,3342.6,3342.2,2.99197]
[1722293237079,0.17678504,3342.6,3342.3,2.99194]
[1722293237444,0.17678504,3342.6,3342.1,5.47836]
[1722293237750,0.17678504,3342.6,3342.2,2.992]
[1722293239086,0.17678504,3342.6,3342.1,2.4863]
[1722293239731,0.17678504,3342.6,3342.2,2.99198]
[1722293240549,0.17678504,3342.6,3342.3,2.99187]
[1722293241954,0.17678504,3342.6,3342.1,2.4863]
[1722293241955,0.17678504,3342.6,3342.1,5.47835]
[1722293242133,0.17678504,3342.6,3342.2,2.99198]
[1722293242459,0.17678504,3342.6,3342.3,2.99194]
[1722293242835,0.17678504,3342.6,3341.7,2.99244]
[1722293242836,2.4572,3342.5,3341.6,2.99255]
[1722293243037,2.992,3342.3,3341.4,5.29789]
[1722293243236,2.992,3342.3,3341.4,5.35773858]
[1722293243479,2.99171,3342.6,3341.4,5.35773858]
[1722293243480,2.99171,3342.6,3341.9,2.9923]
[1722293243974,9.8272,3342.9,3342.2,2.99198]
[1722293243975,0.1768058,3342.5,3342.2,2.99198]
[1722293244279,0.1768058,3342.5,3341.4,2.636]
[1722293244280,2.99174,3342.6,3341.8,2.99238]
[1722293244488,0.1768058,3342.4,3341.9,2.9923]
[1722293244647,2.99174,3342.6,3341.9,2.9923]
[1722293244844,2.99174,3342.6,3341.7,5.29768]
[1722293244845,0.1768058,3342.3,3341.8,2.99234]
[1722293245065,2.99188,3342.4,3341.8,2.99234]
[1722293245266,0.17680837,3342.2,3341.8,2.99234]
[1722293245466,0.598362,3342.3,3341.8,2.99234]
[1722293245678,0.17680837,3342.1,3341.8,2.99234]
[1722293245873,0.598362,3342.3,3341.9,2.99229]
[1722293246076,0.17680837,3342.0,3341.9,2.99229]
[1722293246256,2.99174,3342.6,3341.9,2.99229]
[1722293246458,6.97424,3342.8,3342.1,2.99207]
[1722293246682,0.17680837,3342.5,3342.2,2.99203]
[1722293246884,6.97424,3342.8,3342.2,2.99203]
[1722293247186,1.979278,3342.7,3342.2,2.99203]
[1722293247352,0.17679024,3342.6,3342.2,2.99203]
[1722293248259,0.17679024,3342.6,3342.3,2.99194]
[1722293248890,0.17679024,3342.6,3342.4,2.99184]
[1722293249403,0.1768395,3342.5,3342.4,2.99184]
[1722293249590,1.036132,3342.8,3342.4,2.99184]
[1722293249793,0.1768395,3342.7,3342.4,2.99184]
[1722293249992,0.1768395,3342.7,3342.2,5.984]
[1722293250191,0.1768395,3342.7,3342.2,2.99197]
[1722293250390,0.85829715,3342.6,3342.2,2.99197]
[1722293250708,0.85829715,3342.6,3342.0,2.99219]
[1722293250926,0.1768395,3342.5,3341.8,2.99237]
[1722293251129,2.99192,3342.4,3341.7,2.3052]
[1722293251270,0.1768395,3342.5,3341.7,2.3052]
[1722293251271,0.65192566,3342.3,3341.7,2.3052]
[1722293251475,0.82880403,3342.3,3341.7,2.3052]
[1722293251985,0.82880403,3342.3,3341.8,2.99239]
[1722293252935,0.82880403,3342.3,3341.7,2.3052]
[1722293253102,0.82880403,3342.3,3341.4,2.99269]
[1722293253405,0.82880403,3342.3,3341.1,2.3246]
[1722293253406,2.99227,3342.0,3341.2,2.99287]
[1722293253608,3.46835167,3341.9,3341.3,2.99284]
[1722293254172,3.46835167,3341.9,3341.1,2.3246]
[1722293254173,2.99239,3341.8,3341.1,2.3246]
[1722293254403,2.99239,3341.8,3341.2,2.99287]
[1722293254626,0.17677467,3341.7,3341.2,2.99287]
[1722293254974,0.17677467,3341.7,3341.3,2.99283]
[1722293255210,0.299227,3341.9,3341.3,2.99283]
[1722293255407,0.80499417,3341.8,3341.3,2.99283]
[1722293255607,0.80499417,3341.8,3341.4,2.99273]
[1722293255809,0.80499417,3341.8,3341.2,2.99287]
[1722293255810,0.17662947,3341.8,3341.5,2.99266]
[1722293256105,2.99204,3342.2,3341.6,2.99252]
[1722293256281,0.1765802,3341.7,3341.4,2.99274]
[1722293256483,2.99204,3342.2,3341.4,2.99274]
[1722293256705,3.64393566,3342.3,3341.4,2.99274]
[1722293256706,0.1765802,3341.6,3341.4,2.99274]
[1722293256871,2.9922,3342.1,3341.4,2.99274]
[1722293257076,0.17656465,3341.5,3341.4,2.99274]
[1722293257276,0.66439357,3342.2,3341.3,2.99283]
[1722293257277,2.99238,3341.9,3341.3,2.99283]
[1722293257479,0.66439357,3342.2,3341.1,4.9606]
[1722293257480,0.17656465,3341.5,3341.1,4.9606]
[1722293257708,2.9924,3341.8,3341.1,4.9606]
[1722293257884,0.1765439,3341.4,3341.1,4.9606]
[1722293258089,2.9924,3341.8,3341.1,4.9606]
[1722293258285,0.1765439,3341.3,3341.2,2.99291]
[1722293258486,2.99249,3341.7,3341.1,4.9606]
[1722293258692,3.840075,3341.8,3341.1,7.95362]
[1722293258693,0.1765439,3341.3,3341.1,7.95362]
[1722293258877,3.840075,3341.8,3341.1,7.95362]
[1722293259080,0.1765439,3341.2,3341.1,7.95362]
[1722293259273,3.840075,3341.8,3341.2,2.9929]
[1722293259591,3.9249305,3341.7,3341.1,5.31762]
[1722293259784,0.17652316,3341.6,3341.1,5.31762]
[1722293261530,0.17652316,3341.6,3341.2,2.99292]
[1722293262015,2.99245,3341.8,3341.1,5.31762]
[1722293262219,0.17652316,3341.7,3341.1,5.31762]
[1722293262588,0.17652316,3341.7,3341.1,2.99302]
[1722293262820,3.16902316,3341.7,3341.1,2.99302]
[1722293263019,0.17652316,3341.7,3341.1,2.99302]
[1722293264820,3.16901316,3341.7,3341.1,2.99302]
[1722293265024,3.16901316,3341.7,3341.3,2.99283]
[1722293265025,0.17352316,3341.7,3341.3,2.99283]
[1722293265236,2.99223,3342.0,3341.4,2.99274]
[1722293265525,0.17635054,3341.9,3341.4,2.99274]
[1722293266088,0.17635054,3341.9,3341.6,2.99257]
[1722293266506,4.57131664,3342.3,3341.6,2.99257]
[1722293266691,0.17639984,3341.8,3341.7,2.99248]
[1722293266891,1.57931664,3342.3,3341.7,2.99248]
[1722293267092,0.17654505,3341.8,3341.7,2.99248]
[1722293267592,0.92739098,3342.3,3341.7,2.99248]
[1722293267593,0.92739098,3342.3,3341.7,5.28918]
[1722293267799,0.92739098,3342.1,3341.7,2.2967]
[1722293268097,3.16882615,3342.0,3341.3,2.2967]
[1722293268422,2.9924,3341.8,3341.3,2.2967]
[1722293268619,2.9924,3341.8,3341.1,2.99295]
[1722293268620,1.10399824,3341.7,3341.1,2.99295]
[1722293269003,1.10399824,3341.7,3341.3,2.99282]
[1722293269206,0.17660726,3341.7,3341.4,2.99274]
[1722293269401,0.17660726,3341.7,3341.3,2.99284]
[1722293269632,0.93650771,3341.7,3341.3,2.99284]
[1722293269845,0.17653986,3341.6,3341.3,2.99284]
[1722293271530,1.11304757,3341.6,3341.3,2.99284]
[1722293272498,1.11304757,3341.6,3341.4,2.99273]
[1722293272735,0.17653986,3341.6,3341.4,2.99273]
[1722293274730,0.17653986,3341.6,3341.3,2.99277]
[1722293274913,1.11304757,3341.6,3341.3,2.99277]
[1722293275643,0.93650771,3341.5,3341.3,2.99277]
[1722293275846,0.1765217,3341.4,3341.3,2.99277]
[1722293276012,0.93650771,3341.6,3341.3,2.99277]
[1722293276213,0.1765217,3341.5,3341.3,2.99277]
[1722293277425,0.1765217,3341.5,3341.4,2.99275]
[1722293278054,0.93650771,3341.6,3341.4,2.99275]
[1722293278249,0.17642835,3341.5,3341.4,2.99275]
[1722293279244,0.17642835,3341.5,3341.2,2.99286]
[1722293279425,1.11293606,3341.5,3341.2,2.99286]
[1722293280258,1.11293606,3341.5,3341.3,2.99283]
[1722293280564,0.17642835,3341.5,3341.3,2.99277]
[1722293281617,0.17642835,3341.5,3340.9,2.99314]
[1722293281823,0.93616389,3341.4,3341.0,2.99311]
[1722293282052,0.17641798,3341.3,3341.0,2.99311]
[1722293282271,0.17641798,3341.3,3340.9,2.99318]
[1722293282500,0.17641798,3341.3,3340.7,5.31178]
[1722293282501,0.93616389,3341.2,3340.7,5.31178]
[1722293282642,1.11258187,3341.3,3340.7,5.31178]
[1722293283027,0.93616389,3341.2,3340.7,5.31178]
[1722293283226,0.17637131,3341.1,3340.7,5.31178]
[1722293283474,0.17637131,3341.1,3340.2,7.34]
[1722293283475,4.64094557,3341.1,3340.2,2.4055]
[1722293283780,4.64094557,3341.1,3340.3,2.9937]
[1722293284068,4.64094557,3341.1,3340.2,2.4055]
[1722293284069,0.93616389,3340.7,3340.1,2.99388]
[1722293284474,1.11238215,3340.6,3340.1,2.99388]
[1722293284951,1.11238215,3340.6,3339.9,5.46776]
[1722293284952,0.17621826,3340.6,3340.3,2.99368]
[1722293285755,0.93616389,3340.9,3340.3,2.99368]
[1722293286075,0.93616389,3340.9,3339.9,2.4737]
[1722293286076,0.93616389,3340.8,3340.1,2.99391]
[1722293286222,0.93616389,3340.6,3340.1,2.99391]
[1722293286423,0.93616389,3340.6,3339.9,5.46772]
[1722293286630,0.17607557,3340.5,3339.9,5.46772]
[1722293287251,0.17607557,3340.5,3340.0,2.99399]
[1722293288880,6.22145389,3340.7,3340.0,2.99399]
[1722293289079,0.17585506,3340.4,3340.3,2.99374]
[1722293289281,0.93616389,3340.9,3340.4,2.99358]
[1722293289479,1.24821852,3341.1,3340.5,3.05339411]
[1722293289480,0.93616389,3341.0,3340.5,3.05339411]
[1722293290680,3.92929389,3341.0,3340.3,2.99374]
[1722293290883,0.93616389,3340.9,3340.3,2.99374]
[1722293291378,5.44028615,3341.0,3340.3,2.99374]
[1722293291379,0.93616389,3340.8,3340.3,2.99374]
[1722293291579,0.93616389,3340.9,3340.8,2.99329]
[1722293291886,0.93616389,3341.4,3340.9,2.99314]
[1722293292097,1.24821852,3341.6,3341.2,2.99293]
[1722293292098,0.93616389,3341.6,3341.2,2.99293]
[1722293292380,0.93616389,3341.7,3341.2,2.99293]
[1722293292580,2.64591952,3341.7,3340.9,2.99317]
[1722293292780,2.64591952,3341.7,3341.1,2.99294]
[1722293292982,0.17608595,3341.6,3341.1,2.99294]
[1722293293565,1.11224984,3341.6,3341.2,2.9929]
[1722293293757,0.17608595,3341.6,3341.3,2.99278]
[1722293294165,0.17608595,3341.6,3341.5,2.99266]
[1722293294558,0.93616389,3341.9,3341.5,2.99266]
[1722293295070,0.17611967,3341.8,3341.5,2.99266]
[1722293296388,1.11228356,3341.8,3341.5,2.99266]
[1722293296561,0.17611967,3341.8,3341.3,2.99277]
[1722293296765,4.10468356,3341.8,3341.1,2.993]
[1722293297072,0.93616389,3341.7,3341.2,2.99293]
[1722293297274,0.93616389,3341.7,3341.4,2.99271]
[1722293297498,1.42433819,3341.8,3341.4,2.99271]
[1722293297499,0.17646725,3341.6,3341.4,2.99271]
[1722293297718,0.17646725,3341.6,3341.5,2.99266]
[1722293297879,0.93616389,3341.8,3341.5,2.99266]
[1722293298081,0.17646725,3341.6,3341.5,2.99266]
[1722293298324,0.93616389,3341.8,3341.6,2.99251]
[1722293298636,1.55958083,3342.1,3341.5,2.99265]
[1722293298637,0.17646725,3341.6,3341.5,2.99265]
[1722293298804,0.93616389,3341.9,3341.6,2.99256]
[1722293300167,0.93616389,3342.0,3341.7,0.05984776]
[1722293300474,0.93616389,3342.2,3341.8,2.99239]
[1722293300693,0.93616389,3342.3,3342.0,2.99216]
[1722293301707,0.93616389,3342.3,3341.8,2.99239]
[1722293301905,3.92802097,3342.3,3341.6,2.99251]
[1722293302078,0.93606097,3342.1,3341.6,2.99251]
[1722293302412,0.93606097,3342.1,3341.7,2.99248]
[1722293302990,0.93606097,3342.1,3341.8,3.05222106]
[1722293303421,0.93606097,3342.2,3341.8,3.05222106]
[1722293303625,0.93606097,3342.2,3341.6,2.99251]
[1722293303823,0.93606097,3342.2,3341.4,5.44879]
[1722293303824,3.92817097,3342.2,3341.4,5.44879]
[1722293304021,3.92817097,3342.2,3341.4,2.99269]
[1722293304022,3.41996097,3342.1,3341.4,2.99269]
[1722293304318,3.92833097,3342.0,3341.4,2.99269]
[1722293304482,0.93606097,3341.9,3341.4,2.99269]
[1722293305289,0.93606097,3342.0,3341.4,2.99269]
[1722293306142,0.93606097,3342.0,3341.2,2.636]
[1722293306334,0.93606097,3341.9,3341.2,2.636]
[1722293306503,0.93606097,3341.9,3341.4,2.99275]
[1722293306691,0.93606097,3341.8,3341.4,2.99275]
[1722293306895,0.93606097,3341.8,3341.2,5.62887]
[1722293307087,0.93606097,3341.8,3341.1,2.99298]
[1722293307088,3.92847097,3341.8,3341.1,2.99298]
[1722293307293,3.92847097,3341.8,3341.2,2.99292]
[1722293307294,0.93606097,3341.7,3341.2,2.99292]
[1722293308092,0.17646985,3341.6,3341.1,2.99298]
[1722293308935,1.11253082,3341.6,3341.1,2.99298]
[1722293310108,0.17646985,3341.6,3341.1,2.99298]
[1722293310313,1.11253082,3341.6,3341.1,2.99298]
[1722293310514,1.11253082,3341.6,3341.0,2.3825]
[1722293310870,1.11253082,3341.6,3340.2,10.33377]
[1722293310871,2.99329,3340.8,3340.2,10.33377]
[1722293311152,2.99329,3340.8,3340.0,2.99393]
[1722293311153,4.10503155,3340.7,3340.0,2.99395]
[1722293311555,4.10503155,3340.7,3340.1,2.99391]
[1722293313148,0.17629607,3340.7,3340.2,2.99376]
[1722293313463,0.17629607,3340.7,3340.3,2.99374]
[1722293313750,3.92851548,3340.9,3340.3,2.99374]
[1722293313932,0.17607299,3340.6,3340.3,2.99374]
[1722293314243,0.17607299,3340.5,3340.3,2.99374]
[1722293314436,3.92851548,3340.9,3340.3,2.99374]
[1722293314835,0.17607299,3340.8,3340.3,2.99374]
[1722293318270,0.17607299,3340.8,3340.1,2.99391]
[1722293318271,5.48756299,3340.8,3340.1,2.99385]
[1722293318471,5.48756299,3340.8,3339.9,5.63006]
[1722293318472,2.99347,3340.6,3339.9,5.63006]
[1722293318681,0.17610929,3340.5,3339.9,5.63006]
[1722293318881,0.17610929,3340.5,3339.7,5.35785]
[1722293318882,2.99366,3340.4,3339.7,5.35785]
[1722293319079,2.99366,3340.4,3339.7,2.99425]
[1722293319257,0.17610929,3340.3,3339.7,2.99425]
[1722293319590,3.16984929,3340.3,3339.7,2.99425]
[1722293322886,0.17610929,3340.3,3339.7,2.99425]
[1722293323202,2.99341,3340.7,3339.8,0.05987719]
[1722293323729,0.17594839,3340.6,3339.8,0.05987719]
[1722293323953,0.17594839,3340.6,3340.0,2.99393]
[1722293324239,0.17594839,3340.6,3339.8,0.05987719]
[1722293324240,7.37,3340.9,3340.5,2.9935]
[1722293325320,7.37,3340.9,3340.4,0.05986516]
[1722293326002,7.37,3340.9,3340.4,3.05350516]
[1722293326815,2.99317,3341.0,3340.4,3.05350516]
[1722293328234,0.9344247,3341.1,3340.5,2.99355]
[1722293328395,3.9273647,3341.2,3340.5,2.99355]
[1722293328594,3.9273647,3341.2,3340.6,2.99344]
[1722293328791,3.9273647,3341.2,3340.5,2.99354]
[1722293329117,3.9273647,3341.2,3340.1,2.4866]
[1722293329118,2.64379681,3341.2,3340.2,2.99375]
[1722293329317,2.99344,3340.7,3340.0,2.99395]
[1722293329686,2.99351,3340.6,3339.9,2.99409]
[1722293329889,2.99344,3340.7,3339.9,2.99409]
[1722293330119,2.99363,3340.5,3339.6,2.99429]
[1722293330422,2.99363,3340.5,3339.8,2.99416]
[1722293330715,2.99363,3340.5,3339.6,2.99429]
[1722293330716,2.99375,3340.3,3339.7,2.99427]
[1722293330915,5.98726,3340.5,3339.7,2.99427]
[1722293331294,2.99366,3340.4,3339.7,2.99427]
[1722293332686,6.37724925,3340.6,3339.8,2.99411]
[1722293332887,2.99353,3340.6,3339.9,2.99403]
[1722293333692,3.92782925,3340.7,3339.9,2.99403]
[1722293333693,2.99357,3340.5,3339.9,2.99403]
[1722293336490,2.99357,3340.5,3339.5,2.3976]
[1722293336491,0.93441925,3340.7,3340.1,2.99392]
[1722293336722,2.99341,3340.7,3340.1,2.99392]
[1722293337228,6.37693925,3340.9,3340.2,2.99377]
[1722293337229,2.99329,3340.8,3340.2,2.99377]
[1722293337701,0.93441925,3340.9,3340.1,2.4254]
[1722293337893,0.17569415,3340.8,3340.1,2.4254]
[1722293338094,0.17569415,3340.8,3340.4,2.99359]
[1722293338915,0.17569415,3340.8,3340.1,5.41928]
[1722293338916,0.17569415,3340.8,3340.1,2.4254]
[1722293339105,0.17569415,3340.8,3340.7,5.98676]
[1722293339435,1.24589234,3341.7,3341.0,2.99308]
[1722293339436,2.9925,3341.7,3341.0,2.99308]
[1722293339614,4.79196916,3341.7,3341.0,2.99308]
[1722293339817,1.79946916,3341.7,3341.3,2.99284]
[1722293340039,5.45188,3341.9,3341.3,2.99278]
[1722293340040,2.99236,3341.9,3341.3,2.99278]
[1722293340207,2.9924,3341.8,3341.1,3.0527964]
[1722293340632,2.9924,3341.8,3341.2,2.99293]
[1722293340827,2.99233,3341.9,3341.2,2.99293]
[1722293341038,3.56763711,3341.9,3341.2,2.99293]
[1722293342122,3.56763711,3341.9,3341.3,2.99284]
[1722293343144,0.93441925,3342.1,3341.4,3.05259317]
[1722293343314,7.37,3342.3,3341.2,2.4811]
[1722293343315,0.93441925,3342.3,3341.2,2.4811]
[1722293343517,0.93441925,3342.3,3341.7,2.99246]
[1722293343768,0.93441925,3342.4,3341.8,2.99239]
[1722293343921,3.92618925,3342.5,3341.8,2.99239]
[1722293344125,5.8680474,3342.5,3341.8,2.99239]
[1722293345459,2.99197,3342.3,3341.6,2.99256]
[1722293346144,2.99197,3342.3,3341.7,2.99248]
[1722293346531,0.93377888,3342.4,3341.7,2.99248]
[1722293346738,5.05283139,3342.4,3341.7,2.99248]
[1722293347346,5.05283139,3342.4,3341.8,2.99238]
[1722293347578,2.99187,3342.4,3341.8,2.99238]
[1722293347940,2.99187,3342.4,3341.6,2.99252]
[1722293348141,3.92564888,3342.4,3341.6,2.99252]
[1722293348443,2.99187,3342.4,3341.6,2.99252]
[1722293348649,3.92564888,3342.4,3341.7,2.99247]
[1722293349143,2.99187,3342.4,3341.7,2.99247]
[1722293350048,2.99195,3342.3,3341.7,2.99247]
[1722293351143,1.04914374,3342.3,3341.3,2.99281]
[1722293351338,0.93377888,3342.2,3341.3,2.99281]
[1722293351763,2.99222,3342.0,3341.3,2.99281]
[1722293351953,2.99222,3342.0,3341.4,2.99274]
[1722293352785,0.17658133,3341.9,3341.2,2.4811]
[1722293353016,2.99272,3341.5,3340.8,5.34309]
[1722293353190,2.99276,3341.4,3340.8,5.34309]
[1722293353392,3.92638888,3341.6,3340.8,2.99329]
[1722293353702,3.92638888,3341.6,3340.9,2.9932]
[1722293353844,0.17635057,3341.5,3340.9,2.9932]
[1722293354373,3.16901057,3341.5,3340.9,2.9932]
[1722293355265,2.99294,3341.2,3340.6,2.3498]
[1722293355680,0.17624941,3341.1,3340.6,2.3498]
[1722293356368,0.17624941,3341.1,3340.6,5.34326]
[1722293356564,0.17624941,3341.1,3340.8,2.99321]
[1722293356967,2.99266,3341.5,3340.9,2.99319]
[1722293357163,0.17613268,3341.0,3340.9,2.99319]
[1722293357364,2.99266,3341.5,3340.9,2.99319]
[1722293357568,0.17613268,3341.0,3340.9,2.99319]
[1722293357764,3.92627888,3341.7,3341.0,2.99305]
[1722293358102,1.05767474,3341.6,3341.1,2.99301]
[1722293358963,4.05025474,3341.6,3340.9,2.99319]
[1722293359173,4.05025474,3341.6,3341.0,2.99311]
[1722293359395,2.99258,3341.6,3341.0,2.99311]
[1722293360098,2.99267,3341.5,3340.7,2.99331]
[1722293360271,3.92644888,3341.5,3340.8,2.99329]
[1722293360469,2.99267,3341.5,3340.8,2.99329]
[1722293360685,4.05038074,3341.5,3340.8,2.99329]
[1722293362195,4.05038074,3341.5,3340.9,2.9932]
[1722293362396,0.93436846,3341.6,3341.1,2.99299]
[1722293362596,0.93436846,3341.8,3341.2,2.99288]
[1722293362798,0.93436846,3341.9,3341.3,2.99283]
[1722293363406,3.93436846,3341.9,3341.3,2.99283]
[1722293363779,0.93436846,3341.9,3341.3,2.99283]
[1722293363994,3.92658846,3342.0,3341.3,2.99283]
[1722293364223,5.781335,3342.0,3341.3,2.99283]
[1722293365338,5.781335,3342.0,3341.4,2.9927]
[1722293365517,10.69446846,3342.1,3341.5,2.99266]
[1722293365674,6.31660846,3342.1,3341.5,2.99266]
[1722293366019,3.92660846,3342.0,3341.3,2.99278]
[1722293366174,5.13783402,3342.0,3341.3,2.99278]
[1722293366687,2.14559402,3342.0,3341.4,2.99268]
[1722293366889,0.93436846,3342.0,3341.4,2.99268]
[1722293367936,0.17623644,3341.9,3341.4,2.99268]
[1722293368080,0.17623644,3341.9,3341.5,2.99259]
[1722293370320,0.17623644,3341.9,3341.2,2.3228]
[1722293370321,0.17623644,3341.9,3341.8,2.99239]
[1722293370621,0.93436846,3342.5,3342.1,2.99208]
[1722293370818,0.93436846,3342.5,3342.1,2.99205]
[1722293371606,0.93436846,3342.6,3342.1,2.99205]
[1722293371787,1.90657166,3342.6,3342.1,2.99205]
[1722293372594,0.9722032,3342.6,3342.1,2.99205]
[1722293374820,0.93508437,3342.7,3342.1,2.99205]
[1722293374993,0.93508437,3342.7,3342.3,2.99194]
[1722293375197,0.93513616,3342.9,3342.3,2.99194]
[1722293375448,3.92646616,3343.0,3342.3,2.99194]
[1722293375594,5.9490329,3343.0,3342.3,2.99194]
[1722293376538,0.93513616,3342.9,3342.3,2.99194]
[1722293376719,5.01389674,3343.0,3342.3,2.99194]
[1722293376720,5.9490329,3343.0,3342.3,2.99194]
[1722293377032,3.92655616,3342.9,3342.2,0.05983492]
[1722293377232,6.07319176,3342.9,3342.2,0.05983492]
[1722293377540,3.92664616,3342.8,3342.2,0.05983492]
[1722293377765,2.99159,3342.7,3342.2,0.05983492]
[1722293377951,0.93535772,3342.8,3342.2,3.05186492]
[1722293378345,6.07346332,3342.9,3342.2,3.05186492]
[1722293379638,2.99151,3342.8,3342.2,3.05186492]
[1722293379868,3.92686772,3342.8,3342.2,3.05186492]
[1722293380368,2.99151,3342.8,3342.2,3.05186492]
[1722293380576,3.92686772,3342.8,3342.2,3.05186492]
[1722293381336,3.92731394,3342.8,3342.2,3.05186492]
[1722293381952,2.9916,3342.7,3342.2,0.05983492]
[1722293382269,2.99168,3342.6,3341.9,2.9923]
[1722293382478,2.99177,3342.5,3341.9,2.9923]
[1722293382766,0.93580394,3342.3,3341.5,2.2702]
[1722293382982,2.99216,3342.1,3341.5,5.26283]
[1722293383132,3.92796394,3342.1,3341.5,5.26283]
[1722293383332,0.17648534,3342.0,3341.5,5.26283]
[1722293383628,1.11228928,3342.0,3341.5,5.26283]
[1722293383854,0.17648534,3342.0,3341.5,5.26283]
[1722293384648,1.11228928,3342.0,3341.5,5.26283]
[1722293386771,1.11228928,3342.0,3341.1,2.636]
[1722293386772,2.99247,3341.8,3341.2,2.2606]
[1722293386945,3.92827394,3341.8,3341.2,2.2606]
[1722293387140,0.17634534,3341.7,3341.2,2.2606]
[1722293387544,2.99258,3341.6,3341.2,2.2606]
[1722293387746,0.93580394,3341.7,3341.1,2.99302]
[1722293387991,0.17634534,3341.6,3341.1,2.99302]
[1722293388744,0.17634534,3341.6,3341.2,2.99292]
[1722293388949,0.17634534,3341.6,3341.3,2.99279]
[1722293389174,0.93580394,3341.8,3341.3,2.99279]